bitfinex/quotes_SOLUSD_20250226
["timestamp","ask_amount","ask_price","bid_price","bid_amount"]
[1740575469344,88.3707,137.54,137.49,0.063]
[1740575469538,7.2701,137.55,137.49,0.063]
[1740575469727,88.3697,137.56,137.49,87.4248]
[1740575470129,7.2697,137.56,137.49,87.4248]
[1740575470331,7.2692,137.57,137.49,87.4248]
[1740575470533,19.21829514,137.56,137.49,80.1519]
[1740575470822,19.07613357,137.56,137.49,80.1519]
[1740575471238,20.07613357,137.56,137.49,80.1519]
[1740575471740,0.14216157,137.55,137.49,80.1519]
[1740575471926,19.07613357,137.53,137.49,0.063]
[1740575472516,0.14216157,137.5,137.49,0.063]
[1740575473118,0.42648471,137.49,137.44,0.063]
[1740575473317,2.42648471,137.49,137.44,0.063]
[1740575474041,0.14216157,137.47,137.44,0.063]
[1740575474239,0.42648471,137.45,137.44,0.063]
[1740575475832,26.35143357,137.45,137.44,0.063]
[1740575476034,0.14216157,137.43,137.4,0.063]
[1740575476436,18.64964886,137.44,137.4,0.063]
[1740575476725,0.14216157,137.43,137.4,0.063]
[1740575477369,19.07613357,137.42,137.4,0.063]
[1740575478072,21.21829514,137.4,137.39,0.063]
[1740575478219,21.21829514,137.4,137.39,0.0001]
[1740575479838,81.1,137.42,137.39,0.0001]
[1740575480168,3.71852522,137.43,137.39,0.0001]
[1740575480331,7.2755,137.45,137.39,80.089]
[1740575480536,3.61525312,137.47,137.39,80.089]
[1740575480537,10.88995312,137.47,137.39,80.089]
[1740575481052,19.21829514,137.46,137.39,80.089]
[1740575481353,100.31829514,137.46,137.39,80.089]
[1740575481529,18.64964886,137.44,137.39,80.089]
[1740575481930,81.1,137.46,137.39,80.089]
[1740575482137,81.1,137.51,137.4,0.14216157]
[1740575482373,7.2727,137.5,137.4,0.14216157]
[1740575482554,18.64964886,137.49,137.39,223.5675]
[1740575482748,8.2727,137.5,137.42,20.0]
[1740575483053,100.31829514,137.49,137.4,80.0889]
[1740575483238,7.2727,137.5,137.39,0.0001]
[1740575483239,20.21829514,137.47,137.39,0.0001]
[1740575483439,19.21829514,137.45,137.39,0.0001]
[1740575483645,26.49399514,137.45,137.39,0.0001]
[1740575483854,19.21829514,137.43,137.39,0.0001]
[1740575484153,100.31829514,137.43,137.39,0.0001]
[1740575484541,102.31829514,137.43,137.39,0.0001]
[1740575484753,20.21829514,137.41,137.39,0.0001]
[1740575485658,25.92764886,137.4,137.39,0.0001]
[1740575485950,107.02764886,137.4,137.39,0.0001]
[1740575487257,107.59629514,137.4,137.39,0.0001]
[1740575487453,21.21829514,137.39,137.35,0.063]
[1740575487641,19.21829514,137.36,137.35,0.063]
[1740575487841,18.64964886,137.36,137.35,0.063]
[1740575489061,25.92974886,137.36,137.35,0.063]
[1740575489759,107.59839514,137.36,137.35,0.063]
[1740575489975,109.59839514,137.36,137.35,0.0001]
[1740575490139,21.21829514,137.35,137.25,81.6921]
[1740575490457,19.21829514,137.33,137.23,13.6503]
[1740575490674,19.21829514,137.31,137.23,13.6503]
[1740575490957,18.64964886,137.29,137.23,86.4524]
[1740575491260,18.64964886,137.29,137.23,6.3635]
[1740575492845,81.1,137.33,137.26,20.0]
[1740575494354,18.64964886,137.3,137.23,222.6524]
[1740575494542,18.64964886,137.3,137.23,86.4524]
[1740575494747,81.1,137.32,137.24,7.2864]
[1740575494944,81.1,137.32,137.27,20.0]
[1740575495156,26.49999514,137.33,137.27,20.0]
[1740575495348,26.49999514,137.33,137.26,20.0]
[1740575495554,26.49999514,137.33,137.27,20.0]
[1740575495746,18.64964886,137.33,137.27,20.0]
[1740575496877,18.64964886,137.34,137.27,100.0889]
[1740575497047,18.64964886,137.34,137.28,7.2843]
[1740575497772,18.64964886,137.34,137.28,87.3732]
[1740575498157,7.2813,137.34,137.28,87.3732]
[1740575498357,7.2813,137.34,137.28,87.4032]
[1740575498555,0.56864628,137.31,137.28,0.03]
[1740575498756,19.21829514,137.29,137.28,0.03]
[1740575499248,26.50209514,137.29,137.28,0.03]
[1740575499450,107.60209514,137.29,137.28,0.03]
[1740575499745,26.50209514,137.29,137.28,0.03]
[1740575500182,18.64964886,137.28,137.23,0.063]
[1740575501369,25.93614886,137.24,137.23,0.063]
[1740575502376,1.0,137.29,137.23,0.063]
[1740575502558,20.0,137.25,137.23,0.063]
[1740575502753,18.64964886,137.24,137.23,0.063]
[1740575502955,10.96047889,137.28,137.23,0.063]
[1740575502956,7.2843,137.28,137.23,0.063]
[1740575503392,18.64964886,137.27,137.23,0.063]
[1740575504476,26.50259514,137.28,137.23,0.063]
[1740575506886,0.56864628,137.25,137.23,0.063]
[1740575507400,99.74964886,137.26,137.23,0.063]
[1740575507594,81.1,137.26,137.23,0.063]
[1740575507881,18.64964886,137.25,137.23,0.063]
[1740575508082,19.21829514,137.24,137.23,0.063]
[1740575508873,26.50479514,137.24,137.23,0.063]
[1740575509704,0.56864628,137.22,137.21,0.063]
[1740575509981,0.56864628,137.22,137.2,0.063]
[1740575509982,21.21829514,137.21,137.2,0.0001]
[1740575510561,19.21829514,137.21,137.2,0.0001]
[1740575510854,18.64964886,137.21,137.2,0.0001]
[1740575511083,25.93764886,137.21,137.2,0.0001]
[1740575511457,26.36413357,137.21,137.2,0.0001]
[1740575511658,26.50629514,137.21,137.2,0.0001]
[1740575511964,27.50629514,137.21,137.2,0.0001]
[1740575512169,26.50629514,137.21,137.2,0.0001]
[1740575517868,20.56864628,137.17,137.13,0.063]
[1740575518062,19.21829514,137.14,137.13,0.063]
[1740575519490,26.51009514,137.14,137.13,0.063]
[1740575520891,7.2907,137.16,137.13,0.063]
[1740575521192,25.94034886,137.16,137.13,0.063]
[1740575521570,7.2891,137.19,137.13,0.063]
[1740575521876,7.2891,137.19,137.13,6.563]
[1740575522396,18.64964886,137.18,137.13,6.563]
[1740575522779,25.93934886,137.18,137.13,6.563]
[1740575522981,18.64964886,137.16,137.13,0.063]
[1740575523288,18.64964886,137.14,137.13,0.063]
[1740575523486,0.56864628,137.17,137.13,0.063]
[1740575523788,18.64964886,137.14,137.13,0.063]
[1740575524364,19.21829514,137.14,137.13,0.063]
[1740575524570,26.51009514,137.14,137.13,0.063]
[1740575524970,26.51009514,137.14,137.13,0.0001]
[1740575525365,27.51009514,137.14,137.13,0.0001]
[1740575526405,19.21829514,137.1,137.09,0.03]
[1740575526568,19.21829514,137.1,137.09,0.0001]
[1740575527671,21.21829514,137.1,137.09,0.0001]
[1740575527999,39.21829514,137.07,137.06,0.0001]
[1740575528310,46.51379514,137.07,137.06,0.0001]
[1740575529171,47.51379514,137.07,137.06,0.0001]
[1740575529371,46.51379514,137.07,137.06,0.0001]
[1740575529674,0.56864628,137.05,137.03,0.03]
[1740575529987,19.21829514,137.04,137.03,0.03]
[1740575530488,26.51539514,137.04,137.03,0.03]
[1740575531589,19.21829514,137.04,137.03,0.03]
[1740575531890,2.0,137.09,137.03,0.03]
[1740575531891,7.2944,137.09,137.03,0.03]
[1740575532583,18.64964886,137.08,137.03,0.03]
[1740575532785,18.64964886,137.09,137.03,0.03]
[1740575533002,0.56864628,137.08,137.03,0.03]
[1740575533193,0.42648471,137.08,137.03,0.03]
[1740575533499,0.14216157,137.07,137.03,0.03]
[1740575533803,18.79181043,137.05,137.03,0.03]
[1740575534170,18.64964886,137.05,137.03,0.03]
[1740575534465,18.64964886,137.09,137.03,0.03]
[1740575534677,81.1,137.11,137.04,1.5307]
[1740575534901,81.1,137.11,137.05,6.1296]
[1740575535264,81.1,137.14,137.05,86.2185]
[1740575535788,18.79181043,137.13,137.05,86.2185]
[1740575536287,81.1,137.14,137.05,86.2185]
[1740575536472,18.64964886,137.13,137.06,25.5361]
[1740575538176,18.64964886,137.13,137.06,7.296]
[1740575538386,18.64964886,137.11,137.06,7.296]
[1740575538892,18.64964886,137.11,137.05,86.2185]
[1740575539198,0.28432314,137.08,137.05,6.1296]
[1740575540467,18.64964886,137.09,137.05,6.1296]
[1740575540673,18.64964886,137.09,137.05,13.426]
[1740575540873,18.64964886,137.09,137.05,6.1296]
[1740575541404,18.64964886,137.09,137.05,13.4261]
[1740575541875,7.2925,137.13,137.05,31.6676]
[1740575542212,81.1,137.16,137.08,20.0]
[1740575542503,18.64964886,137.15,137.08,100.0889]
[1740575542667,18.64964886,137.15,137.09,7.2944]
[1740575543071,18.64964886,137.15,137.09,25.5305]
[1740575543285,18.64964886,137.15,137.09,7.2944]
[1740575543714,25.94094886,137.15,137.09,7.2944]
[1740575544777,18.64964886,137.13,137.09,80.0889]
[1740575545304,18.64964886,137.13,137.09,87.3833]
[1740575545705,7.2912,137.15,137.09,87.3833]
[1740575546085,18.64964886,137.14,137.09,87.3833]
[1740575547204,7.2912,137.15,137.09,87.3833]
[1740575547412,18.64964886,137.14,137.09,87.3833]
[1740575547903,25.94084886,137.15,137.09,87.3833]
[1740575548105,18.933972,137.14,137.09,80.0889]
[1740575549000,0.28432314,137.14,137.09,80.0889]
[1740575549201,18.933972,137.14,137.09,87.3832]
[1740575549415,7.3539,137.16,137.09,87.3832]
[1740575550496,0.063,137.16,137.09,223.5832]
[1740575550700,0.063,137.16,137.1,7.7888]
[1740575551774,0.063,137.16,137.11,25.5269]
[1740575553902,0.063,137.16,137.14,20.0]
[1740575554104,0.063,137.2,137.15,7.9539]
[1740575556006,0.063,137.2,137.16,7.2907]
[1740575556203,0.063,137.2,137.15,7.9539]
[1740575556401,0.063,137.2,137.15,6.3386]
[1740575557296,0.28432314,137.17,137.11,88.2526]
[1740575557506,18.933972,137.17,137.11,88.2526]
[1740575557707,0.063,137.16,137.11,88.2526]
[1740575558390,0.34732314,137.16,137.11,88.2526]
[1740575558716,18.996972,137.16,137.11,80.0889]
[1740575558896,0.28432314,137.14,137.09,80.0889]
[1740575559621,0.28432314,137.14,137.07,80.0889]
[1740575559784,0.28432314,137.12,137.05,216.3189]
[1740575559985,18.64964886,137.1,137.05,216.3189]
[1740575561413,7.2934,137.11,137.05,216.3189]
[1740575561716,18.64964886,137.1,137.05,0.03]
[1740575563403,25.94304886,137.11,137.05,0.03]
[1740575564316,18.64964886,137.11,137.06,20.0]
[1740575564496,18.2294,137.15,137.06,20.0]
[1740575564691,18.64964886,137.14,137.06,20.0]
[1740575564929,18.64964886,137.14,137.06,236.2889]
[1740575565090,0.56864628,137.11,137.05,0.03]
[1740575565491,18.45721152,137.09,137.05,0.03]
[1740575566416,0.28432314,137.08,137.05,0.03]
[1740575566611,0.28432314,137.06,137.05,0.03]
[1740575567590,7.58032314,137.06,137.05,0.03]
[1740575568007,26.51429514,137.06,137.05,0.0001]
[1740575569419,107.61429514,137.06,137.05,0.0001]
[1740575570815,107.04564886,137.06,137.05,0.0001]
[1740575571220,107.61429514,137.06,137.05,0.0001]
[1740575571704,107.04564886,137.06,137.05,0.0001]
[1740575574119,107.329972,137.06,137.05,0.0001]
[1740575574303,107.61429514,137.06,137.05,0.0001]
[1740575574505,26.51429514,137.06,137.05,0.0001]
[1740575574926,19.21829514,137.04,137.03,0.0001]
[1740575575097,39.21829514,137.04,137.03,0.0001]
[1740575576318,46.51539514,137.04,137.03,0.0001]
[1740575578312,50.11346626,137.04,137.03,0.0001]
[1740575580427,42.6494,137.11,137.03,0.0001]
[1740575580428,81.1,137.08,137.03,0.0001]
[1740575580630,84.80569478,137.11,137.04,6.4167]
[1740575580934,7.2939,137.1,137.04,6.4167]
[1740575581229,0.28432314,137.06,137.03,0.0001]
[1740575581418,18.933972,137.05,137.03,0.0001]
[1740575581594,18.933972,137.04,137.03,0.0001]
[1740575582201,26.231072,137.04,137.03,0.0001]
[1740575582447,25.94674886,137.04,137.03,0.0001]
[1740575582627,88.3957,137.07,137.03,0.0001]
[1740575582801,19.21829514,137.06,137.03,0.0001]
[1740575583218,18.64964886,137.06,137.03,0.0001]
[1740575583841,7.2952,137.08,137.03,0.0001]
[1740575584020,18.64964886,137.07,137.03,0.0001]
[1740575584546,26.08681043,137.08,137.03,0.0001]
[1740575585143,0.14216157,137.06,137.03,0.0001]
[1740575586422,18.64964886,137.04,137.03,0.0001]
[1740575587926,18.64964886,137.05,137.03,0.0001]
[1740575588124,25.94634886,137.05,137.03,0.0001]
[1740575594146,18.71264886,137.05,137.03,0.0001]
[1740575594338,26.00924886,137.05,137.03,0.0001]
[1740575594918,0.28432314,137.04,137.03,0.0001]
[1740575596350,0.28432314,137.04,136.97,136.23]
[1740575596351,0.56864628,136.98,136.97,0.03]
[1740575596524,19.21829514,136.98,136.97,0.03]
[1740575597033,18.64964886,136.98,136.97,0.03]
[1740575597237,0.28432314,137.02,136.97,0.03]
[1740575598332,7.2987,137.01,136.97,0.03]
[1740575599054,18.64964886,137.0,136.97,0.03]
[1740575600254,7.58192314,137.03,136.97,0.03]
[1740575600638,18.64964886,137.02,136.97,0.03]
[1740575601365,18.933972,137.03,136.97,0.03]
[1740575601537,7.2982,137.02,136.97,0.03]
[1740575603869,18.64964886,136.99,136.97,0.03]
[1740575604874,0.28432314,136.97,136.96,0.03]
[1740575605944,100.033972,136.96,136.95,0.0001]
[1740575607044,107.335372,136.96,136.95,0.0001]
[1740575607245,26.51969514,136.96,136.95,0.0001]
[1740575609556,26.51969514,136.96,136.92,0.03]
[1740575609557,20.56864628,136.93,136.92,0.03]
[1740575609740,39.21829514,136.93,136.92,0.03]
[1740575610248,39.21829514,136.93,136.92,0.5581082]
[1740575611642,42.96617632,136.93,136.92,0.5581082]
[1740575612068,50.26917632,136.93,136.92,0.5581082]
[1740575612274,58.14447632,136.93,136.92,0.5581082]
[1740575612574,19.21829514,136.92,136.91,0.03]
[1740575613541,26.52179514,136.92,136.91,0.03]
[1740575614862,19.21829514,136.92,136.91,0.03]
[1740575615242,3.74788118,136.93,136.91,0.03]
[1740575615454,7.6931,136.97,136.91,0.03]
[1740575615655,19.21829514,136.98,136.91,0.03]
[1740575616373,19.21829514,136.95,136.91,0.03]
[1740575616748,18.79181043,136.95,136.91,0.03]
[1740575617076,81.1,136.96,136.91,0.03]
[1740575617244,81.1,136.99,136.91,0.03]
[1740575617444,18.64964886,136.98,136.91,0.03]
[1740575617673,0.28432314,136.97,136.91,0.03]
[1740575618252,18.64964886,136.98,136.91,0.03]
[1740575618449,18.64964886,136.98,136.91,80.1189]
[1740575618769,0.28432314,136.97,136.91,80.1189]
[1740575619751,18.71264886,136.98,136.92,7.3035]
[1740575620359,0.063,136.98,136.93,1.5423]
[1740575620583,0.063,136.98,136.94,6.1544]
[1740575620877,0.063,136.98,136.94,222.4433]
[1740575621876,0.063,136.98,136.95,25.5567]
[1740575623242,0.063,136.98,136.97,20.0]
[1740575623448,0.063,136.98,136.97,100.0889]
[1740575623768,0.063,136.98,136.97,243.5897]
[1740575623958,0.063,136.98,136.97,236.2889]
[1740575624454,18.71264886,137.04,136.97,243.5897]
[1740575624872,0.063,137.04,136.97,243.5897]
[1740575625973,0.28432314,137.03,136.97,236.2889]
[1740575626159,18.71264886,137.04,136.97,236.2889]
[1740575626555,0.063,137.04,136.97,236.2889]
[1740575628058,18.64964886,137.03,136.97,236.2889]
[1740575629677,0.063,137.04,136.97,243.5897]
[1740575630876,0.063,137.04,136.97,236.2889]
[1740575631062,0.063,137.04,136.97,243.6197]
[1740575631991,0.20516157,137.04,136.97,243.6197]
[1740575632168,7.2976,137.03,136.97,236.3189]
[1740575632561,7.2976,137.03,136.97,100.1189]
[1740575634654,0.063,137.04,136.97,107.4197]
[1740575635058,18.71264886,137.04,136.97,107.4197]
[1740575635899,7.2976,137.03,136.97,107.4197]
[1740575636287,7.3603,137.04,136.97,107.4197]
[1740575638268,0.063,137.04,136.98,1.5418]
[1740575638468,0.063,137.04,136.98,217.8307]
[1740575639389,0.063,137.04,136.99,7.2998]
[1740575639885,0.063,137.04,137.03,20.0]
[1740575640070,0.063,137.04,137.03,100.0889]
[1740575641394,81.163,137.12,137.03,108.9954]
[1740575641584,0.063,137.12,137.03,245.1954]
[1740575642691,7.3561,137.12,137.03,245.1954]
[1740575642877,18.64964886,137.11,137.03,245.1954]
[1740575643796,0.063,137.04,137.03,245.1954]
[1740575646303,0.063,137.12,137.04,0.42648471]
[1740575646478,0.063,137.12,137.08,6.4357]
[1740575646805,0.063,137.12,137.08,222.7246]
[1740575647898,0.063,137.12,137.09,7.2944]
[1740575652480,18.71264886,137.12,137.04,105.6288]
[1740575652685,0.063,137.12,137.07,20.0]
[1740575652903,0.063,137.12,137.08,6.065]
[1740575653304,7.356,137.12,137.08,6.065]
[1740575653504,0.063,137.12,137.08,6.065]
[1740575653706,7.356,137.12,137.07,216.2889]
[1740575656216,7.356,137.12,137.07,80.0889]
[1740575657219,0.063,137.12,137.07,87.3841]
[1740575658290,0.063,137.12,137.07,80.0889]
[1740575658898,0.063,137.12,137.07,87.384]
[1740575660106,0.063,137.12,137.07,105.6228]
[1740575661915,0.063,137.12,137.07,106.6228]
[1740575662115,0.063,137.12,137.1,20.0]
[1740575662309,0.063,137.12,137.1,236.2889]
[1740575663897,0.063,137.12,137.1,216.2889]
[1740575664097,0.063,137.12,137.07,80.0889]
[1740575664893,0.063,137.12,137.07,87.3842]
[1740575666119,6.3557,137.13,137.07,87.3842]
[1740575666295,0.063,137.14,137.07,87.3842]
[1740575666495,0.063,137.14,137.08,4.58513564]
[1740575666724,0.063,137.14,137.11,20.0]
[1740575666906,0.063,137.14,137.11,236.2889]
[1740575667107,0.063,137.14,137.11,242.8744]
[1740575668020,0.063,137.14,137.12,7.2928]
[1740575668214,0.063,137.14,137.12,10.18757103]
[1740575668918,0.063,137.14,137.12,7.2928]
[1740575669314,0.063,137.14,137.11,250.1676]
[1740575669927,0.063,137.14,137.11,243.5821]
[1740575670611,0.063,137.14,137.11,244.5821]
[1740575671416,0.063,137.14,137.11,243.5821]
[1740575673710,0.063,137.14,137.09,80.0889]
[1740575674304,0.063,137.14,137.09,87.3833]
[1740575674505,0.063,137.14,137.09,80.0889]
[1740575676413,7.3548,137.14,137.09,80.0889]
[1740575676617,0.063,137.14,137.09,87.3832]
[1740575678928,0.063,137.14,137.09,223.5832]
[1740575679130,0.20516157,137.14,137.09,216.2889]
[1740575679639,0.28432314,137.12,137.05,80.0889]
[1740575679812,18.933972,137.12,137.05,80.0889]
[1740575680013,18.933972,137.1,137.05,80.0889]
[1740575680330,25.247972,137.1,137.09,0.03]
[1740575680530,27.12179514,137.1,137.09,0.03]
[1740575681332,26.837472,137.1,137.09,0.03]
[1740575682026,34.131372,137.1,137.09,0.03]
[1740575684432,34.131372,137.1,137.03,0.03]
[1740575684433,18.933972,137.05,137.03,0.03]
[1740575686535,26.231072,137.04,137.03,0.03]
[1740575686738,25.94674886,137.04,137.03,0.03]
[1740575688245,18.64964886,137.04,137.03,0.03]
[1740575689114,26.231072,137.04,137.03,0.03]
[1740575689317,26.51539514,137.04,137.03,0.03]
[1740575690626,26.231072,137.04,137.03,0.03]
[1740575694922,25.94674886,137.04,137.03,0.03]
[1740575695940,18.64964886,137.04,137.03,0.03]
[1740575697124,25.94674886,137.04,137.03,0.03]
[1740575697322,26.231072,137.04,137.03,0.03]
[1740575698226,26.51539514,137.04,137.03,0.03]
[1740575698834,18.64964886,137.04,137.03,0.03]
[1740575699218,25.94674886,137.04,137.03,0.03]
[1740575699749,18.64964886,137.04,137.03,0.03]
[1740575700428,81.1,137.08,137.03,0.03]
[1740575700628,0.063,137.09,137.03,106.1279]
[1740575700829,0.063,137.09,137.07,20.0]
[1740575701051,0.063,137.09,137.07,102.9]
[1740575701435,0.063,137.09,137.07,82.9]
[1740575701638,18.85481043,137.09,137.05,20.0]
[1740575701844,0.063,137.09,137.05,20.0]
[1740575702033,0.063,137.09,137.05,102.9]
[1740575702857,0.063,137.09,137.08,20.0]
[1740575705460,0.063,137.09,137.07,7.2955]
[1740575705756,0.063,137.09,137.05,219.1]
[1740575705926,0.063,137.09,137.06,7.2958]
[1740575706860,0.063,137.09,137.06,226.3958]
[1740575707738,18.996972,137.09,137.03,82.93]
[1740575707954,18.933972,137.07,137.03,82.93]
[1740575708269,0.28432314,137.05,137.03,0.03]
[1740575708559,18.933972,137.05,137.03,0.03]
[1740575709071,18.64964886,137.04,137.03,0.03]
[1740575709356,0.34732314,137.09,137.03,0.03]
[1740575709555,26.00724886,137.09,137.03,82.93]
[1740575709856,0.063,137.09,137.06,20.0]
[1740575710069,0.063,137.09,137.06,82.9]
[1740575710838,0.063,137.09,137.08,27.295]
[1740575711039,0.063,137.09,137.06,226.3955]
[1740575711243,0.063,137.09,137.06,225.3955]
[1740575711957,0.063,137.09,137.06,243.6356]
[1740575712357,0.063,137.09,137.06,235.584733]
[1740575713167,0.063,137.09,137.06,217.344633]
[1740575713586,0.063,137.09,137.03,73.879133]
[1740575713860,18.933972,137.08,137.03,73.879133]
[1740575714244,18.933972,137.06,137.03,0.03]
[1740575714668,100.033972,137.06,137.03,0.03]
[1740575715041,0.28432314,137.05,137.03,0.03]
[1740575715248,100.033972,137.04,137.03,0.03]
[1740575715453,19.21829514,137.04,137.03,0.03]
[1740575716668,18.933972,137.04,137.03,0.03]
[1740575717167,38.933972,137.04,137.03,0.03]
[1740575717467,46.231072,137.04,137.03,0.03]
[1740575718143,38.933972,137.04,137.03,0.03]
[1740575718469,46.231072,137.04,137.03,0.03]
[1740575718669,38.933972,137.04,137.03,0.03]
[1740575719270,18.64964886,137.04,137.03,0.03]
[1740575721378,81.163,137.09,137.03,0.03]
[1740575721569,0.063,137.09,137.03,73.879133]
[1740575721770,0.063,137.09,137.04,1.0]
[1740575722450,0.063,137.09,137.07,20.0]
[1740575722650,0.063,137.09,137.07,73.849133]
[1740575723454,0.063,137.09,137.08,7.295]
[1740575727580,0.063,137.09,137.08,81.144133]
[1740575734083,0.063,137.14,137.11,20.0]
[1740575734254,0.063,137.14,137.11,230.049133]
[1740575736060,0.063,137.14,137.11,73.849133]
[1740575738967,0.063,137.14,137.08,217.343933]
[1740575739168,0.063,137.14,137.08,81.143933]
[1740575739858,0.063,137.14,137.11,20.0]
[1740575740064,0.063,137.14,137.11,231.049133]
[1740575740864,0.063,137.14,137.12,1.0]
[1740575741076,0.063,137.14,137.11,230.049133]
[1740575741372,0.063,137.14,137.11,231.049133]
[1740575741766,0.063,137.14,137.12,1.0]
[1740575741967,0.063,137.14,137.13,7.2923]
[1740575742568,0.063,137.14,137.13,20.0]
[1740575743981,0.063,137.14,137.11,73.849133]
[1740575744179,0.063,137.14,137.09,73.849133]
[1740575746074,18.64964886,137.13,137.09,73.849133]
[1740575746681,0.063,137.14,137.09,81.143533]
[1740575746867,0.063,137.14,137.12,20.0]
[1740575747882,0.063,137.14,137.13,20.0]
[1740575749362,0.063,137.14,137.13,93.849133]
[1740575750572,0.063,137.14,137.1,73.849133]
[1740575750978,0.063,137.14,137.1,81.143033]
[1740575751987,0.18,137.13,137.1,81.143033]
[1740575752372,0.18,137.13,137.12,20.0]
[1740575752779,0.18,137.13,137.12,93.849133]
[1740575753179,0.18,137.13,137.12,94.849133]
[1740575753773,0.18,137.13,137.12,102.141933]
[1740575754173,0.063,137.14,137.12,102.141933]
[1740575754367,0.063,137.14,137.12,101.141933]
[1740575756172,0.063,137.14,137.12,27.2928]
[1740575756383,0.063,137.14,137.11,7.2932]
[1740575759501,7.43456157,137.13,137.09,0.03]
[1740575759691,0.28432314,137.11,137.09,0.03]
[1740575760012,19.21829514,137.1,137.09,0.03]
[1740575760592,0.28432314,137.07,137.06,0.03]
[1740575761593,26.229472,137.07,137.06,0.03]
[1740575763175,20.28432314,137.04,137.03,0.03]
[1740575763374,39.21829514,137.04,137.03,0.03]
[1740575765106,18.64964886,137.04,137.03,0.03]
[1740575765975,18.933972,137.04,137.03,0.03]
[1740575766181,18.64964886,137.04,137.03,0.03]
[1740575767097,107.47323357,137.04,137.03,0.03]
[1740575767295,26.51539514,137.04,137.03,0.03]
[1740575767655,18.933972,136.98,136.97,0.03]
[1740575768078,19.21829514,136.98,136.97,0.03]
[1740575768905,26.51859514,136.98,136.97,0.03]
[1740575774228,25.94994886,136.98,136.97,0.03]
[1740575774430,26.37643357,136.98,136.97,0.03]
[1740575774601,3.68939292,137.01,136.97,0.03]
[1740575774801,39.21829514,137.0,136.97,0.03]
[1740575775023,18.64964886,137.0,136.97,0.03]
[1740575775518,18.64964886,136.98,136.97,0.03]
[1740575775906,19.21829514,136.98,136.97,0.03]
[1740575776101,26.51859514,136.98,136.97,0.03]
[1740575776304,19.21829514,136.98,136.97,0.03]
[1740575776511,18.64964886,136.98,136.97,0.03]
[1740575776908,88.3988,137.01,136.97,0.03]
[1740575777107,81.1,137.01,136.97,0.03]
[1740575777427,88.3967,137.05,136.97,82.93]
[1740575777597,81.1,137.05,136.97,82.93]
[1740575777920,7.2962,137.06,136.97,83.93]
[1740575778233,18.64964886,137.05,136.98,7.3003]
[1740575778600,18.64964886,137.06,136.98,8.3003]
[1740575778906,18.64964886,137.06,136.98,7.3003]
[1740575779104,18.64964886,137.06,136.98,8.3003]
[1740575779308,0.28432314,137.05,136.98,25.5511]
[1740575779524,18.64964886,137.06,136.98,25.5511]
[1740575780015,18.64964886,137.06,136.98,26.5511]
[1740575781021,18.64964886,137.06,136.98,25.5511]
[1740575781202,18.64964886,137.06,136.98,108.4511]
[1740575781401,0.28432314,137.05,136.98,90.2003]
[1740575782225,0.28432314,137.04,136.98,90.2003]
[1740575782554,18.933972,136.99,136.97,0.03]
[1740575782903,26.233972,136.99,136.97,0.03]
[1740575783625,99.3455,137.02,136.97,0.03]
[1740575783828,0.28432314,137.0,136.97,0.03]
[1740575784006,19.21829514,137.0,136.97,0.03]
[1740575784205,0.28432314,136.99,136.97,0.03]
[1740575784431,18.933972,136.98,136.97,0.03]